[Event "Titled Tuesday Blitz January 03 Early 2023"]
[White "Preotu, Razvan"]
[Black "Mendez Fortes, Eduardo Jesus"]
[WhiteFideId "2613280"]
[BlackFideId "3502376"]
[WhiteElo "2475"]
[BlackElo "2250"]
[Result "1/2-1/2"]
[Round "04"]
[TimeControl "180+2"]
[Date "2023.01.03"]
[WhiteClock "0:00:09"]
[BlackClock "0:00:17"]

1. e4 {[%clk 0:03:00]}  e5 {[%clk 0:02:59]} 2. Nf3 {[%clk 0:03:01]}  Nc6 {[%clk 0:02:59]} 3. Bc4 {[%clk 0:03:01]}  Nf6 {[%clk 0:02:59]} 4. d3 {[%clk 0:03:01]}  Bc5 {[%clk 0:02:58]} 5. c3 {[%clk 0:03:02]}  d6 {[%clk 0:02:59]} 6. O-O {[%clk 0:03:03]}  O-O {[%clk 0:02:58]} 7. Re1 {[%clk 0:03:03]}  Bb6 {[%clk 0:02:59]} 8. h3 {[%clk 0:03:04]}  Ne7 {[%clk 0:02:59]} 9. Nbd2 {[%clk 0:03:03]}  Ng6 {[%clk 0:02:58]} 10. a4 {[%clk 0:02:57]}  c6 {[%clk 0:02:57]} 11. Bb3 {[%clk 0:02:52]}  Bc7 {[%clk 0:02:43]} 12. d4 {[%clk 0:02:52]}  Re8 {[%clk 0:02:41]} 13. Bc2 {[%clk 0:02:51]}  b5 {[%clk 0:02:37]} 14. b4 {[%clk 0:02:13]}  Bd7 {[%clk 0:02:25]} 15. axb5 {[%clk 0:02:00]}  cxb5 {[%clk 0:02:24]} 16. Nb3 {[%clk 0:02:01]}  h6 {[%clk 0:02:10]} 17. Be3 {[%clk 0:01:47]}  a5 {[%clk 0:01:59]} 18. bxa5 {[%clk 0:01:46]}  Bxa5 {[%clk 0:01:58]} 19. Nxa5 {[%clk 0:01:45]}  Rxa5 {[%clk 0:01:59]} 20. dxe5 {[%clk 0:01:02]}  dxe5 {[%clk 0:01:54]} 21. Qd6 {[%clk 0:00:57]}  Re6 {[%clk 0:01:35]} 22. Qb4 {[%clk 0:00:56]}  Rxa1 {[%clk 0:01:32]} 23. Rxa1 {[%clk 0:00:57]}  Bc6 {[%clk 0:01:28]} 24. g3 {[%clk 0:00:48]}  Rd6 {[%clk 0:01:21]} 25. Bc5 {[%clk 0:00:47]}  Rd7 {[%clk 0:01:19]} 26. Kg2 {[%clk 0:00:35]}  Qc8 {[%clk 0:01:12]} 27. Ra7 {[%clk 0:00:21]}  Rxa7 {[%clk 0:01:08]} 28. Bxa7 {[%clk 0:00:22]}  Qb7 {[%clk 0:01:08]} 29. Be3 {[%clk 0:00:11]}  Nxe4 {[%clk 0:01:06]} 30. Kh2 {[%clk 0:00:05]}  Nxg3 {[%clk 0:00:53]} 31. Kxg3 {[%clk 0:00:03]}  Bxf3 {[%clk 0:00:53]} 32. Bxg6 {[%clk 0:00:03]}  fxg6 {[%clk 0:00:52]} 33. Qd6 {[%clk 0:00:04]}  Qd5 {[%clk 0:00:36]} 34. Qxg6 {[%clk 0:00:02]}  Be2 {[%clk 0:00:25]} 35. Kh2 {[%clk 0:00:02]}  Qf7 {[%clk 0:00:16]} 36. Qxf7+ {[%clk 0:00:02]}  Kxf7 {[%clk 0:00:17]} 37. h4 {[%clk 0:00:03]}  Ke6 {[%clk 0:00:16]} 38. Kg3 {[%clk 0:00:03]}  Kf5 {[%clk 0:00:16]} 39. Bc5 {[%clk 0:00:03]}  Bh5 {[%clk 0:00:16]} 40. Bf8 {[%clk 0:00:04]}  Kf6 {[%clk 0:00:17]} 41. Bc5 {[%clk 0:00:03]}  Be2 {[%clk 0:00:17]} 42. Bb4 {[%clk 0:00:04]}  h5 {[%clk 0:00:16]} 43. Bc5 {[%clk 0:00:05]}  g5 {[%clk 0:00:16]} 44. hxg5+ {[%clk 0:00:05]}  Kxg5 {[%clk 0:00:16]} 45. Be7+ {[%clk 0:00:05]}  Kf5 {[%clk 0:00:17]} 46. Bd8 {[%clk 0:00:05]}  Ke4 {[%clk 0:00:17]} 47. Bf6 {[%clk 0:00:06]}  Bg4 {[%clk 0:00:18]} 48. Bg7 {[%clk 0:00:06]}  Kf5 {[%clk 0:00:17]} 49. Bh8 {[%clk 0:00:06]}  Ke6 {[%clk 0:00:18]} 50. Bg7 {[%clk 0:00:07]}  Kd5 {[%clk 0:00:19]} 51. Bh8 {[%clk 0:00:06]}  Be2 {[%clk 0:00:19]} 52. Bg7 {[%clk 0:00:07]}  Ke6 {[%clk 0:00:18]} 53. Bh8 {[%clk 0:00:07]}  Kf5 {[%clk 0:00:18]} 54. Bg7 {[%clk 0:00:08]}  Bd3 {[%clk 0:00:18]} 55. Bh8 {[%clk 0:00:08]}  e4 {[%clk 0:00:18]} 56. Bd4 {[%clk 0:00:08]}  Kg5 {[%clk 0:00:18]} 57. Be3+ {[%clk 0:00:08]}  Kf5 {[%clk 0:00:18]} 58. Kh4 {[%clk 0:00:09]}  Be2 {[%clk 0:00:18]} 59. Bd4 {[%clk 0:00:09]}  Bf3 {[%clk 0:00:18]} 60. Be3 {[%clk 0:00:10]}  Ke6 {[%clk 0:00:19]} 61. Kg3 {[%clk 0:00:10]}  Kd5 {[%clk 0:00:20]} 62. Bg5 {[%clk 0:00:08]}  Kc4 {[%clk 0:00:21]} 63. Bf6 {[%clk 0:00:09]}  Kd3 {[%clk 0:00:21]} 64. Bg7 {[%clk 0:00:09]}  Ke2 {[%clk 0:00:21]} 65. Bd4 {[%clk 0:00:09]}  Kd2 {[%clk 0:00:21]} 66. Be5 {[%clk 0:00:10]}  Kd3 {[%clk 0:00:22]} 67. Bf6 {[%clk 0:00:08]}  Bd1 {[%clk 0:00:22]} 68. Bg7 {[%clk 0:00:08]}  Ke2 {[%clk 0:00:22]} 69. Bd4 {[%clk 0:00:09]}  Kd2 {[%clk 0:00:20]} 70. Be5 {[%clk 0:00:08]}  Kd3 {[%clk 0:00:20]} 71. Bf6 {[%clk 0:00:08]}  Kc4 {[%clk 0:00:21]} 72. Be5 {[%clk 0:00:08]}  Bg4 {[%clk 0:00:21]} 73. Bf6 {[%clk 0:00:08]}  Kd3 {[%clk 0:00:21]} 74. Be5 {[%clk 0:00:08]}  Kc4 {[%clk 0:00:21]} 75. Bf6 {[%clk 0:00:09]}  Kd5 {[%clk 0:00:22]} 76. Bg7 {[%clk 0:00:09]}  Ke6 {[%clk 0:00:22]} 77. Bh8 {[%clk 0:00:10]}  Kf5 {[%clk 0:00:22]} 78. Bd4 {[%clk 0:00:10]}  Kg5 {[%clk 0:00:22]} 79. Be3+ {[%clk 0:00:11]}  Kg6 {[%clk 0:00:22]} 80. Bd4 {[%clk 0:00:12]}  Kf5 {[%clk 0:00:23]} 81. Be3 {[%clk 0:00:12]}  Ke5 {[%clk 0:00:23]} 82. Bd4+ {[%clk 0:00:13]}  Kd5 {[%clk 0:00:24]} 83. Bg7 {[%clk 0:00:13]}  Kc4 {[%clk 0:00:25]} 84. Bh8 {[%clk 0:00:14]}  Kd3 {[%clk 0:00:25]} 85. Bf6 {[%clk 0:00:14]}  Kd2 {[%clk 0:00:24]} 86. Be5 {[%clk 0:00:14]}  Bf3 {[%clk 0:00:24]} 87. Bf6 {[%clk 0:00:14]}  Kd3 {[%clk 0:00:24]} 88. Be5 {[%clk 0:00:15]}  Ke2 {[%clk 0:00:25]} 89. Bd4 {[%clk 0:00:15]}  Kf1 {[%clk 0:00:25]} 90. Be3 {[%clk 0:00:15]}  Ke1 {[%clk 0:00:22]} 91. Bd4 {[%clk 0:00:15]}  Ke2 {[%clk 0:00:23]} 92. Be3 {[%clk 0:00:13]}  Bg4 {[%clk 0:00:24]} 93. Bd4 {[%clk 0:00:13]}  Kd3 {[%clk 0:00:25]} 94. Be5 {[%clk 0:00:13]}  Bd1 {[%clk 0:00:24]} 95. Bf6 {[%clk 0:00:13]}  Kd2 {[%clk 0:00:21]} 96. Be5 {[%clk 0:00:13]}  Be2 {[%clk 0:00:20]} 97. Bf6 {[%clk 0:00:13]}  Bg4 {[%clk 0:00:19]} 98. Be5 {[%clk 0:00:14]}  Ke2 {[%clk 0:00:19]} 99. Bd4 {[%clk 0:00:13]}  Ke1 {[%clk 0:00:20]} 100. Bc5 {[%clk 0:00:13]}  Kd2 {[%clk 0:00:19]} 101. Bd4 {[%clk 0:00:13]}  Ke2 {[%clk 0:00:20]} 102. Kg2 {[%clk 0:00:12]}  h4 {[%clk 0:00:20]} 103. Bc5 {[%clk 0:00:10]}  Kd3 {[%clk 0:00:19]} 104. Bb4 {[%clk 0:00:10]}  Kc4 {[%clk 0:00:19]} 105. Ba5 {[%clk 0:00:10]}  Bf5 {[%clk 0:00:19]} 106. Bb4 {[%clk 0:00:10]}  Kd3 {[%clk 0:00:18]} 107. Ba5 {[%clk 0:00:09]}  Ke2 {[%clk 0:00:18]} 108. Bb6 {[%clk 0:00:09]}  Kd3 {[%clk 0:00:18]} 109. Ba5 {[%clk 0:00:09]}  Bg4 {[%clk 0:00:17]} 110. Bb4 {[%clk 0:00:09]}  Kc4 {[%clk 0:00:16]} 111. Ba5 {[%clk 0:00:09]}  Kd3 {[%clk 0:00:17]} 112. Bb4 {[%clk 0:00:09]} 1/2-1/2


[Site "https://www.chess.com"]

[Event "Titled Tuesday Blitz January 03 Early 2023"]
[White "Slade, Theodore"]
[Black "Nouri, Alekhine"]
[WhiteFideId "426547"]
[BlackFideId "5216184"]
[WhiteElo "1995"]
[BlackElo "2257"]
[Result "0-1"]
[Round "04"]
[TimeControl "180+2"]
[Date "2023.01.03"]
[WhiteClock "0:00:01"]
[BlackClock "0:00:09"]

1. d4 {[%clk 0:03:00]}  Nf6 {[%clk 0:02:55]} 2. c4 {[%clk 0:03:01]}  c5 {[%clk 0:02:46]} 3. d5 {[%clk 0:03:01]}  b5 {[%clk 0:02:40]} 4. cxb5 {[%clk 0:03:02]}  a6 {[%clk 0:02:40]} 5. e3 {[%clk 0:03:03]}  e6 {[%clk 0:02:39]} 6. dxe6 {[%clk 0:02:57]}  fxe6 {[%clk 0:02:40]} 7. Nc3 {[%clk 0:02:55]}  d5 {[%clk 0:02:40]} 8. Nf3 {[%clk 0:02:55]}  Bd6 {[%clk 0:02:40]} 9. Bd3 {[%clk 0:02:28]}  O-O {[%clk 0:02:39]} 10. e4 {[%clk 0:02:23]}  c4 {[%clk 0:01:45]} 11. Bc2 {[%clk 0:02:15]}  Bb4 {[%clk 0:01:38]} 12. e5 {[%clk 0:02:05]}  Nh5 {[%clk 0:01:24]} 13. Bxh7+ {[%clk 0:01:44]}  Kxh7 {[%clk 0:01:19]} 14. Ng5+ {[%clk 0:01:45]}  Kg6 {[%clk 0:01:19]} 15. Qg4 {[%clk 0:01:35]}  Qc7 {[%clk 0:00:36]} 16. Nxe6+ {[%clk 0:00:55]}  Kf7 {[%clk 0:00:35]} 17. Qf5+ {[%clk 0:00:41]}  Nf6 {[%clk 0:00:32]} 18. Nxc7 {[%clk 0:00:41]}  Bxf5 {[%clk 0:00:31]} 19. Nxa8 {[%clk 0:00:42]}  Ne4 {[%clk 0:00:20]} 20. Bd2 {[%clk 0:00:38]}  Nxd2 {[%clk 0:00:20]} 21. Kxd2 {[%clk 0:00:39]}  d4 {[%clk 0:00:20]} 22. Nc7 {[%clk 0:00:33]}  dxc3+ {[%clk 0:00:20]} 23. bxc3 {[%clk 0:00:33]}  Rd8+ {[%clk 0:00:20]} 24. Ke2 {[%clk 0:00:24]}  Bxc3 {[%clk 0:00:18]} 25. Rad1 {[%clk 0:00:24]}  Bd3+ {[%clk 0:00:18]} 26. Ke3 {[%clk 0:00:23]}  Bxe5 {[%clk 0:00:17]} 27. Nxa6 {[%clk 0:00:21]}  Bd4+ {[%clk 0:00:17]} 28. Kf3 {[%clk 0:00:20]}  Nd7 {[%clk 0:00:17]} 29. Nb4 {[%clk 0:00:16]}  Ne5+ {[%clk 0:00:17]} 30. Kg3 {[%clk 0:00:17]}  Ke6 {[%clk 0:00:16]} 31. Nxd3 {[%clk 0:00:16]}  Nxd3 {[%clk 0:00:16]} 32. Rd2 {[%clk 0:00:13]}  Kd5 {[%clk 0:00:15]} 33. a4 {[%clk 0:00:09]}  Kc5 {[%clk 0:00:11]} 34. Rhd1 {[%clk 0:00:08]}  Bc3 {[%clk 0:00:10]} 35. Rc2 {[%clk 0:00:07]}  Be5+ {[%clk 0:00:09]} 36. Kh3 {[%clk 0:00:06]}  Nf4+ {[%clk 0:00:09]} 37. Kg4 {[%clk 0:00:07]}  Rxd1 {[%clk 0:00:09]} 38. g3 {[%clk 0:00:04]}  Nd3 {[%clk 0:00:09]} 39. Re2 {[%clk 0:00:04]}  c3 {[%clk 0:00:08]} 40. f4 {[%clk 0:00:04]}  Bd4 {[%clk 0:00:08]} 41. Re8 {[%clk 0:00:03]}  Rd2 {[%clk 0:00:08]} 42. h4 {[%clk 0:00:03]}  c2 {[%clk 0:00:09]} 43. Rc8+ {[%clk 0:00:03]}  Kb4 {[%clk 0:00:09]} 44. h5 {[%clk 0:00:01]}  Bc5 {[%clk 0:00:09]} 0-1


[Site "https://www.chess.com"]

[Event "Titled Tuesday Blitz January 03 Early 2023"]
[White "Lavrik, Dmitry"]
[Black "Borrmann, Laurenz"]
[WhiteFideId "24113190"]
[BlackFideId "312187930"]
[WhiteElo "2414"]
[BlackElo "2304"]
[Result "1-0"]
[Round "04"]
[TimeControl "180+2"]
[Date "2023.01.03"]
[WhiteClock "0:01:00"]
[BlackClock "0:00:05"]

1. e4 {[%clk 0:03:00]}  e5 {[%clk 0:02:50]} 2. Nf3 {[%clk 0:03:01]}  Nc6 {[%clk 0:02:50]} 3. Bc4 {[%clk 0:03:01]}  Nf6 {[%clk 0:02:48]} 4. Ng5 {[%clk 0:03:01]}  d5 {[%clk 0:02:47]} 5. exd5 {[%clk 0:03:02]}  Na5 {[%clk 0:02:48]} 6. Bb5+ {[%clk 0:03:02]}  c6 {[%clk 0:02:46]} 7. dxc6 {[%clk 0:03:03]}  bxc6 {[%clk 0:02:46]} 8. Bd3 {[%clk 0:03:04]}  Nd5 {[%clk 0:02:46]} 9. Nf3 {[%clk 0:03:04]}  Bd6 {[%clk 0:02:45]} 10. O-O {[%clk 0:03:04]}  O-O {[%clk 0:02:44]} 11. Re1 {[%clk 0:03:04]}  f5 {[%clk 0:02:44]} 12. c4 {[%clk 0:03:05]}  Nf4 {[%clk 0:02:35]} 13. Bf1 {[%clk 0:03:05]}  e4 {[%clk 0:02:36]} 14. d4 {[%clk 0:03:05]}  exf3 {[%clk 0:02:24]} 15. Qxf3 {[%clk 0:03:06]}  Ne6 {[%clk 0:02:15]} 16. c5 {[%clk 0:02:40]}  Nxd4 {[%clk 0:01:58]} 17. Qc3 {[%clk 0:02:38]}  Bc7 {[%clk 0:01:54]} 18. b4 {[%clk 0:02:38]}  Nb7 {[%clk 0:01:40]} 19. Bb2 {[%clk 0:02:34]}  Qh4 {[%clk 0:01:05]} 20. g3 {[%clk 0:01:12]}  Nf3+ {[%clk 0:01:04]} 21. Qxf3 {[%clk 0:01:13]}  Qxb4 {[%clk 0:01:05]} 22. Qb3+ {[%clk 0:01:13]}  Qxb3 {[%clk 0:01:04]} 23. axb3 {[%clk 0:01:14]}  Nxc5 {[%clk 0:01:00]} 24. Bc4+ {[%clk 0:01:11]}  Kh8 {[%clk 0:00:54]} 25. Re7 {[%clk 0:01:11]}  Ne6 {[%clk 0:00:25]} 26. Bxe6 {[%clk 0:01:06]}  Bxe6 {[%clk 0:00:26]} 27. Rxc7 {[%clk 0:01:06]}  Rfd8 {[%clk 0:00:18]} 28. Bxg7+ {[%clk 0:01:02]}  Kg8 {[%clk 0:00:17]} 29. Nc3 {[%clk 0:01:02]}  Rd7 {[%clk 0:00:05]} 30. Rxd7 {[%clk 0:01:02]}  Bxd7 {[%clk 0:00:06]} 31. Bd4 {[%clk 0:01:02]}  a6 {[%clk 0:00:06]} 32. Na4 {[%clk 0:01:02]}  Rd8 {[%clk 0:00:05]} 33. Nc5 {[%clk 0:01:00]}  Be8 {[%clk 0:00:05]} 34. Be3 {[%clk 0:01:00]} 1-0


[Site "https://www.chess.com"]

[Event "Titled Tuesday Blitz January 03 Early 2023"]
[White "Reprintsev, Alexander"]
[Black "Matinian, Nikita"]
[WhiteFideId "14100541"]
[BlackFideId "24129100"]
[WhiteElo "2253"]
[BlackElo "2407"]
[Result "1-0"]
[Round "04"]
[TimeControl "180+2"]
[Date "2023.01.03"]
[WhiteClock "0:00:10"]
[BlackClock "0:00:29"]

1. e4 {[%clk 0:02:58]}  d6 {[%clk 0:03:00]} 2. d4 {[%clk 0:02:57]}  g6 {[%clk 0:03:01]} 3. Nc3 {[%clk 0:02:56]}  a6 {[%clk 0:03:01]} 4. h4 {[%clk 0:02:55]}  h6 {[%clk 0:03:00]} 5. f4 {[%clk 0:02:54]}  Nf6 {[%clk 0:02:58]} 6. h5 {[%clk 0:02:53]}  Nxh5 {[%clk 0:02:52]} 7. Rxh5 {[%clk 0:02:52]}  gxh5 {[%clk 0:02:53]} 8. Qxh5 {[%clk 0:02:52]}  Nc6 {[%clk 0:02:52]} 9. Bc4 {[%clk 0:02:50]}  e6 {[%clk 0:02:52]} 10. d5 {[%clk 0:02:41]}  Nd4 {[%clk 0:02:38]} 11. Nf3 {[%clk 0:02:27]}  Nxf3+ {[%clk 0:02:37]} 12. gxf3 {[%clk 0:02:25]}  Qf6 {[%clk 0:02:36]} 13. Be3 {[%clk 0:02:17]}  e5 {[%clk 0:02:17]} 14. O-O-O {[%clk 0:02:11]}  Bd7 {[%clk 0:02:16]} 15. Rh1 {[%clk 0:01:19]}  exf4 {[%clk 0:02:05]} 16. Bf2 {[%clk 0:01:15]}  O-O-O {[%clk 0:02:02]} 17. Bh4 {[%clk 0:01:14]}  Qg6 {[%clk 0:02:02]} 18. Bxd8 {[%clk 0:01:13]}  Qxh5 {[%clk 0:01:55]} 19. Rxh5 {[%clk 0:01:12]}  Kxd8 {[%clk 0:01:55]} 20. Ne2 {[%clk 0:01:07]}  Be7 {[%clk 0:01:55]} 21. Kd1 {[%clk 0:01:03]}  Bg5 {[%clk 0:01:53]} 22. Nd4 {[%clk 0:01:01]}  Ke7 {[%clk 0:01:50]} 23. Bf1 {[%clk 0:01:01]}  Kf6 {[%clk 0:01:49]} 24. c3 {[%clk 0:01:00]}  c5 {[%clk 0:01:45]} 25. dxc6 {[%clk 0:00:59]}  bxc6 {[%clk 0:01:45]} 26. Rh2 {[%clk 0:00:58]}  d5 {[%clk 0:01:41]} 27. exd5 {[%clk 0:00:56]}  cxd5 {[%clk 0:01:42]} 28. Nb3 {[%clk 0:00:43]}  h5 {[%clk 0:01:14]} 29. Bxa6 {[%clk 0:00:37]}  h4 {[%clk 0:01:14]} 30. Bf1 {[%clk 0:00:37]}  h3 {[%clk 0:01:12]} 31. Nc5 {[%clk 0:00:29]}  Bc8 {[%clk 0:01:11]} 32. b4 {[%clk 0:00:22]}  Bh4 {[%clk 0:01:08]} 33. Bxh3 {[%clk 0:00:19]}  Bg3 {[%clk 0:01:08]} 34. Bxc8 {[%clk 0:00:19]}  Bxh2 {[%clk 0:00:58]} 35. Bb7 {[%clk 0:00:18]}  Bg1 {[%clk 0:00:56]} 36. Nd3 {[%clk 0:00:16]}  Be3 {[%clk 0:00:56]} 37. Kc2 {[%clk 0:00:13]}  Ke6 {[%clk 0:00:51]} 38. Kb3 {[%clk 0:00:09]}  Rh3 {[%clk 0:00:47]} 39. c4 {[%clk 0:00:09]}  d4 {[%clk 0:00:34]} 40. Bc8+ {[%clk 0:00:08]}  Kd6 {[%clk 0:00:28]} 41. Bxh3 {[%clk 0:00:09]}  f6 {[%clk 0:00:29]} 42. a4 {[%clk 0:00:10]} 1-0


[Site "https://www.chess.com"]

[Event "Titled Tuesday Blitz January 03 Early 2023"]
[White "Bashirli, Nail"]
[Black "Baches Garcia, Guillermo"]
[WhiteFideId "13406809"]
[BlackFideId "2209764"]
[WhiteElo "2326"]
[BlackElo "2327"]
[Result "1-0"]
[Round "04"]
[TimeControl "180+2"]
[Date "2023.01.03"]
[WhiteClock "0:00:26"]
[BlackClock "0:00:07"]

1. e4 {[%clk 0:02:56]}  c5 {[%clk 0:02:59]} 2. Nc3 {[%clk 0:02:51]}  g6 {[%clk 0:02:57]} 3. f4 {[%clk 0:02:42]}  Bg7 {[%clk 0:02:57]} 4. Nf3 {[%clk 0:02:37]}  d6 {[%clk 0:02:52]} 5. Bc4 {[%clk 0:02:33]}  Nc6 {[%clk 0:02:44]} 6. O-O {[%clk 0:02:25]}  e6 {[%clk 0:02:44]} 7. d3 {[%clk 0:02:22]}  Nge7 {[%clk 0:02:44]} 8. a3 {[%clk 0:02:20]}  O-O {[%clk 0:02:42]} 9. Qe1 {[%clk 0:02:15]}  Nd4 {[%clk 0:02:36]} 10. Nxd4 {[%clk 0:02:12]}  cxd4 {[%clk 0:02:36]} 11. Ne2 {[%clk 0:02:12]}  d5 {[%clk 0:02:31]} 12. exd5 {[%clk 0:02:07]}  Nxd5 {[%clk 0:02:28]} 13. Ng3 {[%clk 0:02:06]}  Ne3 {[%clk 0:02:21]} 14. Bxe3 {[%clk 0:02:05]}  dxe3 {[%clk 0:02:22]} 15. c3 {[%clk 0:02:06]}  b5 {[%clk 0:02:07]} 16. Bxb5 {[%clk 0:01:57]}  Rb8 {[%clk 0:01:58]} 17. Bc4 {[%clk 0:01:47]}  Rxb2 {[%clk 0:01:55]} 18. Qxe3 {[%clk 0:01:46]}  Bxc3 {[%clk 0:01:43]} 19. Kh1 {[%clk 0:01:47]}  Bb7 {[%clk 0:01:29]} 20. Ne4 {[%clk 0:01:45]}  f5 {[%clk 0:01:22]} 21. Nf2 {[%clk 0:01:18]}  Bd4 {[%clk 0:00:59]} 22. Qxe6+ {[%clk 0:01:15]}  Kh8 {[%clk 0:00:59]} 23. Rab1 {[%clk 0:01:08]}  Rxb1 {[%clk 0:00:36]} 24. Rxb1 {[%clk 0:01:06]}  Qa8 {[%clk 0:00:33]} 25. Qd6 {[%clk 0:00:46]}  Bxg2+ {[%clk 0:00:28]} 26. Kg1 {[%clk 0:00:46]}  Rd8 {[%clk 0:00:08]} 27. Qe7 {[%clk 0:00:34]}  Bh3 {[%clk 0:00:07]} 28. Rb7 {[%clk 0:00:26]} 1-0


[Site "https://www.chess.com"]

[Event "Titled Tuesday Blitz January 03 Early 2023"]
[White "Al-Tarboush, Ward"]
[Black "Skvortsov, Andrei"]
[WhiteFideId "7601450"]
[BlackFideId "24108600"]
[WhiteElo "2256"]
[BlackElo "2313"]
[Result "1-0"]
[Round "04"]
[TimeControl "180+2"]
[Date "2023.01.03"]
[WhiteClock "0:00:42"]
[BlackClock "0:00:02"]

1. e4 {[%clk 0:03:00]}  d5 {[%clk 0:02:58]} 2. exd5 {[%clk 0:02:59]}  Qxd5 {[%clk 0:02:58]} 3. Nc3 {[%clk 0:02:59]}  Qe5+ {[%clk 0:02:58]} 4. Be2 {[%clk 0:02:57]}  Bg4 {[%clk 0:02:58]} 5. d4 {[%clk 0:02:57]}  Bxe2 {[%clk 0:02:59]} 6. Ngxe2 {[%clk 0:02:57]}  Qa5 {[%clk 0:02:58]} 7. Bf4 {[%clk 0:02:57]}  e6 {[%clk 0:02:56]} 8. O-O {[%clk 0:02:56]}  Nf6 {[%clk 0:02:56]} 9. a4 {[%clk 0:02:55]}  Bd6 {[%clk 0:02:45]} 10. Nb5 {[%clk 0:02:41]}  Bxf4 {[%clk 0:02:30]} 11. Nxf4 {[%clk 0:02:42]}  a6 {[%clk 0:02:30]} 12. b4 {[%clk 0:02:34]}  Qb6 {[%clk 0:02:30]} 13. Na3 {[%clk 0:02:30]}  Qxb4 {[%clk 0:02:28]} 14. Qd3 {[%clk 0:02:19]}  Qd6 {[%clk 0:02:10]} 15. g3 {[%clk 0:02:15]}  O-O {[%clk 0:02:10]} 16. Nc4 {[%clk 0:02:15]}  Qd8 {[%clk 0:02:07]} 17. Rab1 {[%clk 0:02:13]}  b6 {[%clk 0:02:06]} 18. a5 {[%clk 0:02:11]}  b5 {[%clk 0:02:05]} 19. Ne5 {[%clk 0:02:12]}  Qd6 {[%clk 0:02:04]} 20. c4 {[%clk 0:02:06]}  Nbd7 {[%clk 0:01:25]} 21. Nxd7 {[%clk 0:01:59]}  Qxd7 {[%clk 0:01:24]} 22. cxb5 {[%clk 0:01:59]}  axb5 {[%clk 0:01:21]} 23. Rxb5 {[%clk 0:01:57]}  Ra7 {[%clk 0:01:13]} 24. Rfb1 {[%clk 0:01:54]}  g6 {[%clk 0:01:10]} 25. h4 {[%clk 0:01:53]}  Rfa8 {[%clk 0:01:09]} 26. Qc3 {[%clk 0:01:46]}  Ne4 {[%clk 0:01:07]} 27. Qa1 {[%clk 0:01:45]}  Nd2 {[%clk 0:00:54]} 28. Rb8+ {[%clk 0:01:44]}  Kg7 {[%clk 0:00:51]} 29. d5+ {[%clk 0:01:44]}  e5 {[%clk 0:00:46]} 30. Qxe5+ {[%clk 0:01:43]}  f6 {[%clk 0:00:42]} 31. Ne6+ {[%clk 0:00:51]}  Kf7 {[%clk 0:00:39]} 32. Nd8+ {[%clk 0:00:50]}  Kg7 {[%clk 0:00:26]} 33. Ne6+ {[%clk 0:00:49]}  Kf7 {[%clk 0:00:26]} 34. Nd8+ {[%clk 0:00:49]}  Kg7 {[%clk 0:00:17]} 35. Qe6 {[%clk 0:00:49]}  Qxe6 {[%clk 0:00:09]} 36. Nxe6+ {[%clk 0:00:50]}  Kf7 {[%clk 0:00:08]} 37. Rxa8 {[%clk 0:00:49]}  Rxa8 {[%clk 0:00:08]} 38. Rb7 {[%clk 0:00:47]}  Rxa5 {[%clk 0:00:07]} 39. Rxc7+ {[%clk 0:00:47]}  Ke8 {[%clk 0:00:05]} 40. d6 {[%clk 0:00:44]}  Nf3+ {[%clk 0:00:02]} 41. Kg2 {[%clk 0:00:42]}  Ne1+ {[%clk 0:00:02]} 42. Kh3 {[%clk 0:00:42]} 1-0


[Site "https://www.chess.com"]

[Event "Titled Tuesday Blitz January 03 Early 2023"]
[White "Dzierzak, Radoslaw"]
[Black "Liyanage, Ranindu Dilshan"]
[WhiteFideId "1161407"]
[BlackFideId "9915834"]
[WhiteElo "2220"]
[BlackElo "2342"]
[Result "0-1"]
[Round "04"]
[TimeControl "180+2"]
[Date "2023.01.03"]
[WhiteClock "0:00:10"]
[BlackClock "0:00:14"]

1. e4 {[%clk 0:03:00]}  e5 {[%clk 0:02:59]} 2. Nf3 {[%clk 0:03:00]}  Nc6 {[%clk 0:03:00]} 3. Bc4 {[%clk 0:02:59]}  Nf6 {[%clk 0:03:00]} 4. d3 {[%clk 0:02:59]}  h6 {[%clk 0:03:00]} 5. O-O {[%clk 0:02:58]}  g5 {[%clk 0:02:59]} 6. d4 {[%clk 0:02:56]}  exd4 {[%clk 0:02:43]} 7. Nxd4 {[%clk 0:02:52]}  Ne5 {[%clk 0:02:34]} 8. Bb3 {[%clk 0:02:44]}  Bc5 {[%clk 0:02:33]} 9. Nf5 {[%clk 0:02:39]}  d6 {[%clk 0:02:26]} 10. Ng7+ {[%clk 0:01:49]}  Kf8 {[%clk 0:02:24]} 11. Nf5 {[%clk 0:01:46]}  Nxe4 {[%clk 0:02:15]} 12. Nd4 {[%clk 0:01:31]}  Bb6 {[%clk 0:01:56]} 13. c3 {[%clk 0:01:17]}  Kg7 {[%clk 0:01:46]} 14. Be3 {[%clk 0:01:15]}  f5 {[%clk 0:01:41]} 15. f3 {[%clk 0:01:11]}  Nf6 {[%clk 0:01:39]} 16. f4 {[%clk 0:01:06]}  Neg4 {[%clk 0:01:18]} 17. fxg5 {[%clk 0:00:46]}  Nxe3 {[%clk 0:00:52]} 18. gxf6+ {[%clk 0:00:46]}  Qxf6 {[%clk 0:00:53]} 19. Qd3 {[%clk 0:00:42]}  Nxf1 {[%clk 0:00:49]} 20. Kxf1 {[%clk 0:00:42]}  f4 {[%clk 0:00:43]} 21. Nd2 {[%clk 0:00:37]}  Bxd4 {[%clk 0:00:40]} 22. cxd4 {[%clk 0:00:33]}  Bf5 {[%clk 0:00:41]} 23. Qc4 {[%clk 0:00:30]}  c6 {[%clk 0:00:36]} 24. Nf3 {[%clk 0:00:30]}  Rhe8 {[%clk 0:00:35]} 25. Qb4 {[%clk 0:00:29]}  Re7 {[%clk 0:00:35]} 26. Re1 {[%clk 0:00:26]}  Rae8 {[%clk 0:00:34]} 27. Rxe7+ {[%clk 0:00:26]}  Qxe7 {[%clk 0:00:32]} 28. Qd2 {[%clk 0:00:25]}  Qe3 {[%clk 0:00:26]} 29. Qxe3 {[%clk 0:00:22]}  Rxe3 {[%clk 0:00:27]} 30. Kf2 {[%clk 0:00:21]}  Bd3 {[%clk 0:00:25]} 31. Bd1 {[%clk 0:00:18]}  Bb1 {[%clk 0:00:23]} 32. Be2 {[%clk 0:00:17]}  Bxa2 {[%clk 0:00:22]} 33. g3 {[%clk 0:00:17]}  Bd5 {[%clk 0:00:15]} 34. gxf4 {[%clk 0:00:14]}  Rb3 {[%clk 0:00:15]} 35. Nh4 {[%clk 0:00:10]}  Kf6 {[%clk 0:00:14]} 0-1


[Site "https://www.chess.com"]